fUST/lending_fUST_20250806
["ID","MTS","AMOUNT","RATE_DAILY","PERIOD"]
[377672766,1754484649400,-460.0,0.00032298,120]
[377672767,1754484649409,-460.0,0.00032298,120]
[377672768,1754484649419,-1724.59,0.00032298,120]
[377672769,1754484649428,-460.0,0.00032298,120]
[377672770,1754484649438,-248.36079108,0.00032298,120]
[377672771,1754484649791,-151.0,0.00030716,2]
[377672772,1754484649802,-151.0,0.00030716,2]
[377672773,1754484649812,-151.0,0.00030716,2]
[377672774,1754484649821,-151.0,0.00030716,2]
[377672775,1754484649831,-211.63920892,0.00032298,120]
[377672776,1754484649840,-460.0,0.00032298,120]
[377672777,1754484649849,-393.27711774,0.00032298,120]
[377672778,1754484649859,-460.0,0.00032298,120]
[377672779,1754484649869,-529.57,0.00032298,120]
[377672780,1754484649878,-467.26,0.00032298,120]
[377672781,1754484649887,-467.26,0.00032298,120]
[377672782,1754484649896,-467.26,0.00032298,120]
[377672783,1754484649906,-1724.59,0.00032298,120]
[377672784,1754484649915,-467.26,0.00032298,120]
[377672785,1754484649925,-467.26,0.00032298,120]
[377672786,1754484649935,-467.26,0.00032298,120]
[377672787,1754484649944,-1724.59,0.00032298,120]
[377672788,1754484649953,-467.26,0.00032298,120]
[377672789,1754484649963,-467.26,0.00032298,120]
[377672790,1754484649975,-1724.59,0.00032298,120]
[377672791,1754484649985,-467.26,0.00032298,120]
[377672792,1754484649995,-467.26,0.00032298,120]
[377672793,1754484650004,-467.26,0.00032298,120]
[377672794,1754484650013,-1724.72718538,0.00032298,120]
[377672795,1754484650023,-467.26,0.00032298,120]
[377672796,1754484650032,-467.26,0.00032298,120]
[377672797,1754484650042,-467.26,0.00032298,120]
[377672798,1754484650051,-467.26,0.00032298,120]
[377672799,1754484650061,-467.26,0.00032298,120]
[377672800,1754484650070,-467.26,0.00032298,120]
[377672801,1754484650079,-467.26,0.00032298,120]
[377672802,1754484650089,-467.33555926,0.00032298,120]
[377672803,1754484650098,-460.0,0.00032298,120]
[377672804,1754484650108,-460.0,0.00032298,120]
[377672805,1754484650117,-460.0,0.00032298,120]
[377672806,1754484650127,-460.0,0.00032298,120]
[377672807,1754484650136,-460.0,0.00032298,120]
[377672808,1754484650145,-460.0,0.00032298,120]
[377672809,1754484650154,-460.0,0.00032298,120]
[377672810,1754484650164,-460.0,0.00032298,120]
[377672811,1754484650173,-460.0,0.00032298,120]
[377672812,1754484650183,-329.29559066,0.00032298,120]
[377672813,1754484650191,-460.0,0.00032298,120]
[377672814,1754484650201,-469.96022211,0.00032298,120]
[377672815,1754484650211,-468.93246476,0.00032298,120]
[377672816,1754484650220,-460.0,0.00032298,120]
[377672817,1754484650231,-460.0,0.00032298,120]
[377672818,1754484650240,-460.0,0.00032298,120]
[377672819,1754484650249,-460.0,0.00032298,120]
[377672820,1754484650258,-460.0,0.00032298,120]
[377672821,1754484650268,-460.0,0.00032298,120]
[377672822,1754484650277,-460.0,0.00032298,120]
[377672823,1754484650287,-460.0,0.00032298,120]
[377672824,1754484650296,-482.31829915,0.00032298,120]
[377672825,1754484650307,-460.0,0.00032298,120]
[377672826,1754484650316,-460.0,0.00032298,120]
[377672827,1754484650325,-460.0,0.00032298,120]
[377672828,1754484650335,-193.15939071,0.00032298,120]
[377672829,1754484650450,-460.0,0.00032298,120]
[377672830,1754484650460,-460.0,0.00032298,120]
[377672831,1754484650470,-460.0,0.00032298,120]
[377672832,1754484650482,-460.0,0.00032298,120]
[377672833,1754484650492,-411.98300313,0.00032298,120]
[377672834,1754484650920,-151.0,0.00030716,2]
[377672835,1754484650929,-151.0,0.00030716,2]
[377672836,1754484650939,-13.56071227,0.00030716,2]
[377672837,1754484650950,-137.43928773,0.00030716,2]
[377672838,1754484650959,-218.91,0.00032288,10]
[377672839,1754484650971,-48.01699687,0.00032298,120]
[377672840,1754484650983,-460.0,0.00032298,120]
[377672841,1754484650992,-460.0,0.00032298,120]
[377672842,1754484651002,-460.0,0.00032298,120]
[377672843,1754484651012,-460.0,0.00032298,120]
[377672844,1754484651021,-460.0,0.00032298,120]
[377672845,1754484651031,-460.0,0.00032298,120]
[377672846,1754484651040,-460.0,0.00032298,120]
[377672847,1754484651049,-466.53,0.00032298,120]
[377672848,1754484651059,-460.0,0.00032298,120]
[377672849,1754484651068,-460.0,0.00032298,120]
[377672850,1754484651078,-746.92,0.00032298,120]
[377672851,1754484651087,-746.92,0.00032298,120]
[377672852,1754484651096,-746.92,0.00032298,120]
[377672853,1754484651106,-460.0,0.00032298,120]
[377672854,1754484651115,-746.92,0.00032298,120]
[377672855,1754484651125,-214.04,0.00032298,120]
[377672856,1754484651134,-746.92,0.00032298,120]
[377672857,1754484651143,-746.92,0.00032298,120]
[377672858,1754484651153,-746.92,0.00032298,120]
[377672859,1754484651163,-746.92,0.00032298,120]
[377672860,1754484651172,-746.92,0.00032298,120]
[377672861,1754484651181,-746.92,0.00032298,120]
[377672862,1754484651191,-460.0,0.00032298,120]
[377672863,1754484651200,-269.0577154,0.00032298,120]
[377672864,1754484651215,-477.8622846,0.00032298,120]
[377672865,1754484651225,-746.92,0.00032298,120]
[377672866,1754484651236,-460.0,0.00032298,120]
[377672867,1754484651245,-746.92,0.00032298,120]
[377672868,1754484651255,-746.92,0.00032298,120]
[377672869,1754484651264,-460.0,0.00032298,120]
[377672870,1754484651273,-460.0,0.00032298,120]
[377672871,1754484651282,-746.92,0.00032298,120]
[377672872,1754484651291,-460.0,0.00032298,120]
[377672873,1754484651300,-460.0,0.00032298,120]
[377672874,1754484651310,-116.6145005,0.00032298,120]
[377672875,1754484651323,-343.3854995,0.00032298,120]
[377672876,1754484651333,-460.0,0.00032298,120]
[377672877,1754484651344,-42.23102956,0.00032298,120]
[377672878,1754484651356,-417.76897044,0.00032298,120]
[377672879,1754484651366,-47.47807342,0.00032298,120]
[377672880,1754484651377,-371.73847282,0.00032298,120]
[377672881,1754484816294,153.0,0.000245,2]
[377672882,1754484832665,4109.27999376,0.0002455,2]
[377672883,1754484832686,10000.0,0.0002455,2]
[377672884,1754484832707,10000.0,0.0002455,2]
[377672885,1754484832728,6274.92299503,0.0002455,2]
[377672887,1754484925508,153.0,0.000301,120]
[377672888,1754484927400,153.0,0.000301,120]
[377672889,1754484992719,153.0,0.000301,120]
[377672890,1754485040767,500.0,0.00030136,120]
[377672891,1754485052088,671.0,0.00030136,120]
[377672892,1754485121602,1000.0,0.00030137,120]
[377672894,1754485150515,177.24626,0.00013699,2]
[377672895,1754485150937,177.24626,0.00020187,2]
[377672898,1754485250033,450.815,0.00030137,120]
[377672899,1754485289373,2940.07452839,0.0002455,2]
[377672900,1754485290699,430.50995658,0.0002455,2]
[377672901,1754485290722,1039.52730762,0.0002455,2]
[377672902,1754485291875,735.0186321,0.0002455,2]
[377672903,1754485293010,367.50931605,0.0002455,2]
[377672904,1754485294126,183.75465802,0.0002455,2]
[377672905,1754485301642,1000.0,0.00030137,120]
[377672906,1754485330743,200.0,0.0003013,120]
[377672907,1754485537128,-169.1135837,0.00024646,2]
[377672908,1754485537149,-192.462653,0.00026259,2]
[377672909,1754485537170,-671.886877,0.00026395,2]
[377672910,1754485537191,-177.24626,0.00026676,2]
[377672911,1754485537217,-816.92370567,0.00027499,7]
[377672913,1754485634098,-183.75465802,0.00026676,2]
[377672914,1754485634126,-603.46078146,0.00027498,7]
[377672915,1754485635093,-1014.42142748,0.00027498,7]
[377672916,1754485635112,-501.48923229,0.00027673,2]
[377672917,1754485635272,-1200.0,0.00027696,2]
[377672918,1754485635295,-300.0,0.00027696,2]
[377672919,1754485635315,-278.74263715,0.00027697,2]
[377672920,1754485635336,-500.0,0.00027697,2]
[377672921,1754485635356,-336.95357725,0.00027697,2]
[377672922,1754485635377,-500.0,0.00027697,2]
[377672923,1754485635399,-500.0,0.00027697,2]
[377672924,1754485635419,-435.55868867,0.00027697,2]
[377672925,1754485635440,-500.0,0.00027697,2]
[377672926,1754485635460,-630.62045282,0.00027697,2]
[377672927,1754485635482,-500.0,0.00027697,2]
[377672928,1754485635502,-483.5996062,0.00027697,2]
[377672929,1754485635524,-500.0,0.00027697,2]
[377672930,1754485635546,-604.95996371,0.00027697,2]
[377672931,1754485635567,-500.0,0.00027697,2]
[377672932,1754485635588,-500.0,0.00027697,2]
[377672933,1754485635611,-500.0,0.00027697,2]
[377672934,1754485635631,-500.0,0.00027697,2]
[377672935,1754485635652,-500.0,0.00027697,2]
[377672936,1754485635673,-259.5183365,0.00027697,2]
[377672937,1754485635693,-10972.17352265,0.00027698,2]
[377672938,1754485746128,-860.53233114,0.00027598,2]
[377672939,1754485746149,-198.24717899,0.00027634,2]
[377672964,1754485832532,-1563.98001417,0.00027535,7]
[377672965,1754485832541,-195.11984601,0.00027697,2]
[377672966,1754485832550,-400.55110708,0.00027697,2]
[377672967,1754485832560,-329.042,0.00027734,17]
[377672968,1754485832569,-24900.0,0.00027735,2]
[377672969,1754485832579,-527.46908335,0.00028,7]
[377672970,1754485832588,-2973.9348172,0.00028,2]
[377672971,1754485832598,-312.16666667,0.00028,10]
[377672972,1754485832607,-853.97493537,0.0002803,2]
[377672973,1754485832616,-50000.0,0.00028348,2]
[377672974,1754485832625,-1563.9800139,0.00028409,9]
[377672975,1754485832634,-160.0,0.0002871,2]
[377672976,1754485832643,-231.78005385,0.0002871,2]
[377672977,1754485832652,-160.0,0.0002871,2]
[377672978,1754485832661,-215.26769691,0.0002871,2]
[377672979,1754485832671,-349.33,0.00028732,2]
[377672980,1754485832680,-594.7974628,0.00028796,2]
[377672981,1754485832689,-656.27,0.000288,7]
[377672982,1754485832699,-182.42,0.00028886,10]
[377672983,1754485832708,-152.02,0.0002897,10]
[377672984,1754485832717,-504.05394247,0.00028973,5]
[377672985,1754485832726,-863.28,0.0002898,3]
[377672986,1754485832735,-431.64,0.0002898,3]
[377672987,1754485832744,-215.82,0.0002898,3]
[377672989,1754485832754,-647.51,0.0002898,3]
[377672991,1754485832763,-139371.599048,0.0002898,2]
[377672992,1754485832772,-581.0861976,0.0002898,2]
[377672994,1754485832781,-527.46908335,0.00029,10]
[377672995,1754485832791,-527.46908335,0.00029,10]
[377672996,1754485832800,-700.0,0.00029,2]
[377672997,1754485832810,-1563.9800139,0.00029284,11]
[377672998,1754485832820,-500.6679518,0.00029573,2]
[377673000,1754485832829,-400.0,0.00029921,2]
[377673001,1754485832839,-500.0,0.00029973,2]
[377673002,1754485832848,-500.0,0.00029973,2]
[377673004,1754485832858,-612.91,0.0003,2]
[377673006,1754485832868,-700.0,0.0003,3]
[377673008,1754485832878,-159.1,0.0003,3]
[377673010,1754485832888,-62821.78862652,0.0003,2]
[377673012,1754485832898,-160.0,0.0003,2]
[377673014,1754485832907,-408.24222012,0.00030102,2]
[377673016,1754485832917,-470.29382292,0.00030102,2]
[377673018,1754485832927,-400.0,0.00030137,120]
[377673020,1754485832936,-1632.96888049,0.00030151,2]
[377673022,1754485832946,-1563.9800139,0.00030159,13]
[377673024,1754485832955,-305.0,0.00030248,2]
[377673026,1754485832965,-2589.86,0.0003035,3]
[377673028,1754485832975,-1726.56,0.0003035,3]
[377673030,1754485832984,-863.28,0.0003035,3]
[377673032,1754485832994,-431.64,0.0003035,3]
[377673034,1754485833004,-500.0,0.0003035,3]
[377673037,1754485833014,-200.0,0.00030466,15]
[377673039,1754485833024,-200.0,0.00030466,15]
[377673040,1754485833033,-200.0,0.00030466,15]
[377673043,1754485833044,-151.52736887,0.0003049,2]
[377673045,1754485833054,-200.0,0.0003049,3]
[377673046,1754485833067,-785.59795416,0.00030516,2]
[377673048,1754485833077,-12656.46535828,0.00030516,2]
[377673050,1754485833088,-1000.0,0.00030521,2]
[377673053,1754485833098,-737.33598814,0.00030521,2]
[377673055,1754485833108,-260.0,0.00030548,2]
[377673057,1754485833118,-336.0,0.0003055,2]
[377673059,1754485833128,-150.0,0.00030573,3]
[377673061,1754485833138,-251.0,0.00030576,120]
[377673063,1754485833148,-251.0,0.00030586,120]
[377673065,1754485833158,-209057.398573,0.00030596,2]
[377673067,1754485833168,-1743.2585928,0.00030596,2]
[377673069,1754485833177,-251.0,0.00030596,120]
[377673071,1754485833187,-2324.3447904,0.00030606,2]
[377673072,1754485833197,-370000.0,0.00030616,2]
[377673073,1754485833207,-500.0,0.00030624,3]
[377673074,1754485833216,-160.0,0.00030682,2]
[377673075,1754485833226,-461.26544088,0.00030705,2]
[377673076,1754485833235,-160.0,0.00030705,2]
[377673077,1754485833245,-12657.93264304,0.00030705,2]
[377673078,1754485833257,-842.45170444,0.00030705,2]
[377673079,1754485833266,-160.0,0.00030705,2]
[377673080,1754485833277,-290.5430988,0.00030706,2]
[377673081,1754485833287,-216.47163855,0.00030714,2]
[377673082,1754485833297,-1000.0,0.00030716,2]
[377673084,1754485833306,-1000.0,0.00030716,2]
[377673086,1754485833316,-1000.0,0.00030716,2]
[377673088,1754485833325,-1000.0,0.00030716,2]
[377673090,1754485833334,-1000.0,0.00030716,2]
[377673092,1754485833343,-1000.0,0.00030716,2]
[377673094,1754485833353,-1000.0,0.00030716,2]
[377673096,1754485833363,-1000.0,0.00030716,2]
[377673098,1754485833372,-1000.0,0.00030716,2]
[377673100,1754485833382,-1000.0,0.00030716,2]
[377673102,1754485833392,-1000.0,0.00030716,2]
[377673104,1754485833401,-1000.0,0.00030716,2]
[377673105,1754485833411,-1000.0,0.00030716,2]
[377673108,1754485833421,-1000.0,0.00030716,2]
[377673110,1754485833430,-158.21124062,0.00030716,2]
[377673112,1754485833440,-2379.1898512,0.00030746,2]
[377673114,1754485833450,-500.0,0.00030898,3]
[377673116,1754485833459,-12657.93264304,0.00030898,3]
[377673117,1754485833469,-842.45170444,0.00030898,3]
[377673120,1754485833478,-785.59795414,0.00030927,2]
[377673122,1754485833488,-800.0,0.00031,4]
[377673123,1754485833497,-1392.1,0.00031018,7]
[377673125,1754485833508,-1563.9800139,0.00031033,15]
[377673127,1754485833518,-1527.11351173,0.00031068,2]
[377673130,1754485833528,-360.0,0.00031096,2]
[377673132,1754485833538,-1881.17529167,0.00031153,2]
[377673134,1754485833548,-382.52835953,0.00031172,3]
[377673136,1754485833558,-785.59795414,0.00031339,2]
[377673137,1754485833568,-12656.46535828,0.00031339,2]
[377673138,1754485833577,-207.85553637,0.00031534,2]
[377673139,1754485833588,-831.42214547,0.00031534,2]
[377673140,1754485833597,-1870.69982731,0.00031534,2]
[377673141,1754485833608,-3325.68858188,0.00031534,2]
[377673142,1754485833617,-5196.38840919,0.00031534,2]
[377673143,1754485833627,-7482.79930924,0.00031534,2]
[377673144,1754485833637,-10174.73636073,0.00031534,2]
[377673145,1754485833647,-955.95638461,0.00031534,2]
[377673146,1754485833657,-3820.0017129,0.00031534,2]
[377673147,1754485833666,-282.81011108,0.00031534,2]
[377673148,1754485833676,-1131.24044433,0.00031534,2]
[377673149,1754485833686,-2545.29099975,0.00031534,2]
[377673150,1754485833696,-4524.96177733,0.00031534,2]
[377673151,1754485833705,-7063.1825243,0.00031534,2]
[377673152,1754485833714,-460.0,0.00031644,2]
[377673153,1754485833858,-785.59795414,0.0003175,2]
[377673154,1754485833869,-656.27,0.000319,7]
[377673155,1754485833879,-1563.9800139,0.00031908,17]
[377673156,1754485833888,-153.0,0.00032,120]
[377673157,1754485833897,-153.0,0.00032,120]
[377673158,1754485833907,-153.0,0.00032,90]
[377673159,1754485833916,-160.0,0.00032,45]
[377673160,1754485833925,-3674.1799811,0.0003212,2]
[377673161,1754485833935,-8518.44973797,0.00032159,2]
[377673162,1754485833945,-171.49866874,0.00032161,2]
[377673163,1754485833954,-188.69931727,0.00032161,2]
[377673164,1754485833965,-785.59795414,0.00032161,2]
[377673165,1754485833975,-12656.46535828,0.00032161,2]
[377673166,1754485833985,-19228.97878596,0.00032171,5]
[377673167,1754485833994,-560.0,0.00032192,2]
[377673168,1754485834004,-1520.0,0.00032197,53]
[377673169,1754485834014,-200.0,0.000322,120]
[377673170,1754485834024,-581.0861976,0.00032251,2]
[377673171,1754485834034,-2872.53411822,0.00032259,2]
[377673172,1754485834043,-151.0,0.00032259,7]
[377673173,1754485834052,-151.0,0.00032259,7]
[377673174,1754485834066,-151.0,0.00032259,7]
[377673175,1754485834075,-151.0,0.00032259,7]
[377673176,1754485834085,-151.0,0.00032259,7]
[377673177,1754485834094,-151.0,0.00032259,7]
[377673178,1754485834105,-151.0,0.00032259,7]
[377673179,1754485834114,-257.873749,0.00032259,7]
[377673180,1754485834124,-151.0,0.00032259,7]
[377673181,1754485834133,-151.0,0.00032259,7]
[377673182,1754485834144,-151.0,0.00032259,7]
[377673183,1754485834154,-151.0,0.00032259,7]
[377673184,1754485834164,-151.0,0.00032259,7]
[377673185,1754485834173,-151.0,0.00032259,7]
[377673186,1754485834183,-203.033194,0.00032259,7]
[377673187,1754485834192,-203.033194,0.00032259,7]
[377673188,1754485834201,-203.033194,0.00032259,7]
[377673189,1754485834210,-203.033194,0.00032259,7]
[377673190,1754485834219,-203.033194,0.00032259,7]
[377673191,1754485834228,-203.033194,0.00032259,7]
[377673192,1754485834238,-151.0,0.00032259,7]
[377673193,1754485834247,-151.0,0.00032259,7]
[377673194,1754485834257,-151.0,0.00032259,7]
[377673195,1754485834266,-151.0,0.00032259,7]
[377673196,1754485834275,-151.0,0.00032259,7]
[377673197,1754485834285,-151.0,0.00032259,7]
[377673198,1754485834294,-151.0,0.00032259,7]
[377673199,1754485834304,-151.0,0.00032259,7]
[377673200,1754485834313,-151.0,0.00032259,7]
[377673201,1754485834322,-151.0,0.00032259,7]
[377673202,1754485834330,-151.0,0.00032259,7]
[377673203,1754485834339,-160.0,0.00032259,3]
[377673204,1754485834348,-160.0,0.00032259,7]
[377673205,1754485834357,-312.16666667,0.00032259,30]
[377673206,1754485834367,-150.0,0.00032259,30]
[377673207,1754485834376,-300.0,0.00032259,15]
[377673208,1754485834385,-300.50494745,0.00032259,15]
[377673209,1754485834395,-460.0,0.00032259,120]
[377673210,1754485834404,-460.0,0.00032259,120]
[377673211,1754485834413,-460.0,0.00032259,120]
[377673212,1754485834423,-460.0,0.00032259,120]
[377673213,1754485834432,-460.0,0.00032259,120]
[377673214,1754485834442,-1046.19,0.00032259,3]
[377673215,1754485834451,-1046.19,0.00032259,3]
[377673216,1754485834460,-1046.19,0.00032259,3]
[377673217,1754485834470,-1046.19,0.00032259,3]
[377673218,1754485834479,-1046.19,0.00032259,3]
[377673219,1754485834488,-1046.19,0.00032259,3]
[377673220,1754485834498,-1046.19,0.00032259,3]
[377673221,1754485834508,-1046.19,0.00032259,3]
[377673222,1754485834518,-1046.19,0.00032259,3]
[377673223,1754485834527,-1046.19,0.00032259,3]
[377673224,1754485834536,-1046.19,0.00032259,3]
[377673225,1754485834545,-1046.19,0.00032259,3]
[377673226,1754485834554,-1046.19,0.00032259,3]
[377673227,1754485834563,-1046.19,0.00032259,3]
[377673228,1754485834572,-1046.19,0.00032259,3]
[377673229,1754485834581,-1046.19,0.00032259,3]
[377673230,1754485834590,-1046.19,0.00032259,3]
[377673231,1754485834599,-1046.19,0.00032259,3]
[377673232,1754485834608,-1046.19,0.00032259,3]
[377673233,1754485834617,-1046.19,0.00032259,3]
[377673234,1754485834627,-1046.19,0.00032259,3]
[377673235,1754485834636,-1046.19,0.00032259,3]
[377673236,1754485834645,-1046.19,0.00032259,3]
[377673237,1754485834654,-1046.28308439,0.00032259,3]
[377673238,1754485834663,-465.14362087,0.00032259,120]
[377673239,1754485834671,-460.0,0.00032259,120]
[377673240,1754485834681,-460.0,0.00032259,120]
[377673241,1754485834690,-466.0353807,0.00032259,120]
[377673242,1754485834699,-460.0,0.00032259,120]
[377673243,1754485834708,-460.0,0.00032259,120]
[377673244,1754485834717,-460.0,0.00032259,120]
[377673245,1754485834726,-460.0,0.00032259,120]
[377673246,1754485834735,-460.0,0.00032259,120]
[377673247,1754485834744,-460.0,0.00032259,120]
[377673248,1754485834753,-460.0,0.00032259,120]
[377673249,1754485834762,-460.0,0.00032259,120]
[377673250,1754485834771,-460.0,0.00032259,120]
[377673251,1754485834780,-460.0,0.00032259,120]
[377673252,1754485834789,-460.0,0.00032259,120]
[377673253,1754485834798,-460.0,0.00032259,120]
[377673254,1754485834808,-460.0,0.00032259,120]
[377673255,1754485834817,-460.0,0.00032259,120]
[377673256,1754485834826,-460.0,0.00032259,120]
[377673257,1754485834835,-583.19966478,0.00032259,120]
[377673258,1754485834844,-510.37,0.00032259,120]
[377673259,1754485834854,-460.0,0.00032259,120]
[377673260,1754485834863,-460.0,0.00032259,120]
[377673261,1754485834872,-460.0,0.00032259,120]
[377673262,1754485834881,-460.0,0.00032259,120]
[377673263,1754485834890,-460.0,0.00032259,120]
[377673264,1754485834899,-460.0,0.00032259,120]
[377673265,1754485834908,-376.28,0.00032259,120]
[377673266,1754485834918,-156.6,0.00032259,2]
[377673267,1754485834927,-236.31651813,0.00032259,120]
[377673268,1754485834936,-460.0,0.00032259,2]
[377673269,1754485834945,-460.0,0.00032259,2]
[377673270,1754485834954,-460.0,0.00032259,2]
[377673271,1754485834963,-460.0,0.00032259,2]
[377673272,1754485834972,-555.48346302,0.00032259,2]
[377673273,1754485834981,-466.35820989,0.00032259,120]
[377673274,1754485834990,-502.27,0.00032259,120]
[377673275,1754485834999,-502.27,0.00032259,120]
[377673276,1754485835009,-502.27,0.00032259,120]
[377673277,1754485835018,-502.27,0.00032259,120]
[377673278,1754485835027,-502.27,0.00032259,120]
[377673279,1754485835037,-502.27,0.00032259,120]
[377673280,1754485835046,-502.27,0.00032259,120]
[377673281,1754485835056,-502.27,0.00032259,120]
[377673282,1754485835069,-502.27,0.00032259,120]
[377673283,1754485835078,-502.27,0.00032259,120]
[377673284,1754485835088,-200.0,0.00032259,120]
[377673285,1754485835097,-502.27,0.00032259,120]
[377673286,1754485835106,-502.27,0.00032259,120]
[377673287,1754485835116,-502.27,0.00032259,120]
[377673288,1754485835125,-502.27,0.00032259,120]
[377673289,1754485835134,-502.27,0.00032259,120]
[377673290,1754485835144,-461.49465452,0.00032259,120]
[377673291,1754485835153,-502.27,0.00032259,120]
[377673292,1754485835162,-502.27,0.00032259,120]
[377673293,1754485835171,-502.27,0.00032259,120]
[377673294,1754485835181,-502.27,0.00032259,120]
[377673295,1754485835190,-502.27,0.00032259,120]
[377673296,1754485835199,-502.27,0.00032259,120]
[377673297,1754485835208,-502.27,0.00032259,120]
[377673298,1754485835218,-502.27,0.00032259,120]
[377673299,1754485835227,-502.47361234,0.00032259,120]
[377673300,1754485835236,-460.0,0.00032259,120]
[377673301,1754485835246,-460.0,0.00032259,120]
[377673302,1754485835255,-460.0,0.00032259,120]
[377673303,1754485835264,-460.0,0.00032259,120]
[377673304,1754485835273,-460.0,0.00032259,120]
[377673305,1754485835282,-460.0,0.00032259,120]
[377673306,1754485835291,-460.0,0.00032259,120]
[377673307,1754485835300,-460.0,0.00032259,120]
[377673308,1754485835309,-462.46579147,0.00032259,120]
[377673309,1754485835318,-460.0,0.00032259,120]
[377673310,1754485835327,-467.46524095,0.00032259,120]
[377673311,1754485835336,-460.0,0.00032259,120]
[377673312,1754485835345,-460.0,0.00032259,120]
[377673313,1754485835354,-460.0,0.00032259,120]
[377673314,1754485835363,-460.0,0.00032259,120]
[377673315,1754485835372,-460.0,0.00032259,120]
[377673316,1754485835381,-460.0,0.00032259,120]
[377673317,1754485835390,-460.0,0.00032259,120]
[377673318,1754485835399,-460.0,0.00032259,120]
[377673319,1754485835410,-363.09665454,0.00032259,120]
[377673320,1754485835419,-460.0,0.00032259,120]
[377673321,1754485835428,-465.27998142,0.00032259,14]
[377673322,1754485835437,-460.0,0.00032259,120]
[377673323,1754485835446,-460.0,0.00032259,120]
[377673324,1754485835455,-460.0,0.00032259,120]
[377673325,1754485835465,-460.0,0.00032259,120]
[377673326,1754485835475,-460.0,0.00032259,120]
[377673327,1754485835484,-460.0,0.00032259,120]
[377673328,1754485835493,-460.0,0.00032259,120]
[377673329,1754485835503,-460.0,0.00032259,120]
[377673330,1754485835512,-460.0,0.00032259,120]
[377673331,1754485835522,-460.0,0.00032259,120]
[377673332,1754485835531,-460.0,0.00032259,120]
[377673333,1754485835541,-460.0,0.00032259,120]
[377673334,1754485835549,-460.0,0.00032259,120]
[377673335,1754485835559,-460.0,0.00032259,120]
[377673336,1754485835569,-460.0,0.00032259,120]
[377673337,1754485835579,-460.0,0.00032259,120]
[377673338,1754485835597,-460.0,0.00032259,120]
[377673339,1754485835611,-460.0,0.00032259,120]
[377673340,1754485835621,-460.0,0.00032259,120]
[377673341,1754485835631,-460.0,0.00032259,120]
[377673342,1754485835640,-460.0,0.00032259,120]
[377673343,1754485835650,-460.0,0.00032259,120]
[377673344,1754485835659,-460.0,0.00032259,120]
[377673345,1754485835669,-468.43991749,0.00032259,120]
[377673346,1754485835679,-460.0,0.00032259,120]
[377673347,1754485835688,-463.91335734,0.00032259,120]
[377673348,1754485835698,-465.54893334,0.00032259,120]
[377673349,1754485835708,-1624.02,0.00032259,120]
[377673350,1754485835717,-1624.02,0.00032259,120]
[377673351,1754485835727,-1624.02,0.00032259,120]
[377673352,1754485835736,-1624.02,0.00032259,120]
[377673353,1754485835746,-1624.02,0.00032259,120]
[377673354,1754485835756,-1624.02,0.00032259,120]
[377673355,1754485835766,-1624.02,0.00032259,120]
[377673356,1754485835776,-1624.02,0.00032259,120]
[377673357,1754485835786,-1624.02,0.00032259,120]
[377673358,1754485835796,-1624.02,0.00032259,120]
[377673359,1754485835807,-1624.02,0.00032259,120]
[377673360,1754485835816,-1624.02,0.00032259,120]